[Event "Late-Titled-Tuesday-Blitz-June-25-2024"]
[Site "Chess.com"]
[Date "2024.06.25"]
[Round "2"]
[White "KaydenTroffChess"]
[Black "Shahdad2007"]
[Result "1/2-1/2"]
[WhiteElo "2830"]
[BlackElo "2592"]
[TimeControl "180+1"]
[EndTime "14:16:36 PDT"]
[Termination "Game drawn by repetition"]

1. d4 {[%clk 0:03:00.9]} 1... Nf6 {[%clk 0:02:26.9]} 2. Nf3 {[%clk 0:02:59.5]}
2... g6 {[%clk 0:02:26.9]} 3. Bg5 {[%clk 0:02:59.6]} 3... Bg7 {[%clk 0:02:27.8]}
4. Nc3 {[%clk 0:02:59.8]} 4... d5 {[%clk 0:02:27.4]} 5. Bxf6 {[%clk 0:02:59.7]}
5... Bxf6 {[%clk 0:02:27.3]} 6. e4 {[%clk 0:02:59.7]} 6... dxe4 {[%clk
0:02:27.2]} 7. Nxe4 {[%clk 0:03:00.6]} 7... Bg7 {[%clk 0:02:27.8]} 8. c3 {[%clk
0:03:00.7]} 8... O-O {[%clk 0:02:27.7]} 9. Bc4 {[%clk 0:03:00.8]} 9... b6 {[%clk
0:02:20.5]} 10. O-O {[%clk 0:03:00.1]} 10... Ba6 {[%clk 0:02:20.3]} 11. Qb3
{[%clk 0:02:52.5]} 11... Bb7 {[%clk 0:02:16.9]} 12. Rfe1 {[%clk 0:02:51.6]}
12... e6 {[%clk 0:02:16.2]} 13. Ne5 {[%clk 0:02:46.2]} 13... Bxe5 {[%clk
0:01:43.4]} 14. dxe5 {[%clk 0:02:44]} 14... Bxe4 {[%clk 0:01:44.3]} 15. Rxe4
{[%clk 0:02:44.2]} 15... Nd7 {[%clk 0:01:45.2]} 16. Rd1 {[%clk 0:02:29.9]} 16...
Qe7 {[%clk 0:01:22.7]} 17. Qb5 {[%clk 0:02:28.3]} 17... Rad8 {[%clk 0:01:01]}
18. Red4 {[%clk 0:02:18.3]} 18... Nc5 {[%clk 0:00:58.5]} 19. b4 {[%clk
0:02:09.7]} 19... Nb7 {[%clk 0:00:57.4]} 20. Qa6 {[%clk 0:01:48.9]} 20... c5
{[%clk 0:00:53.4]} 21. Rxd8 {[%clk 0:01:24.4]} 21... Rxd8 {[%clk 0:00:54.3]} 22.
Rxd8+ {[%clk 0:01:23.9]} 22... Nxd8 {[%clk 0:00:54.9]} 23. Qc8 {[%clk
0:01:20.3]} 23... cxb4 {[%clk 0:00:54.8]} 24. cxb4 {[%clk 0:01:19.9]} 24... Kg7
{[%clk 0:00:55.2]} 25. Ba6 {[%clk 0:01:08.3]} 25... h5 {[%clk 0:00:52.3]} 26. g3
{[%clk 0:01:03.1]} 26... h4 {[%clk 0:00:51.4]} 27. Kg2 {[%clk 0:01:03.1]} 27...
hxg3 {[%clk 0:00:49.8]} 28. hxg3 {[%clk 0:01:02.8]} 28... Qe8 {[%clk 0:00:41.1]}
29. Kg1 {[%clk 0:00:43]} 29... Qa4 {[%clk 0:00:41]} 30. b5 {[%clk 0:00:12]}
30... Qd1+ {[%clk 0:00:40.9]} 31. Kh2 {[%clk 0:00:11.3]} 31... Qd4 {[%clk
0:00:41.1]} 32. Kg1 {[%clk 0:00:10.9]} 32... Qd1+ {[%clk 0:00:37.8]} 33. Kh2
{[%clk 0:00:11]} 33... Qd4 {[%clk 0:00:36.8]} 34. Kg1 {[%clk 0:00:11]} 34...
Qd1+ {[%clk 0:00:30.7]} 1/2-1/2

[Event "Late-Titled-Tuesday-Blitz-June-25-2024"]
[Site "Chess.com"]
[Date "2024.06.25"]
[Round "2"]
[White "KorolDimitriy75"]
[Black "JSPrepz"]
[Result "0-1"]
[WhiteElo "2412"]
[BlackElo "2813"]
[TimeControl "180+1"]
[EndTime "14:16:36 PDT"]
[Termination "JSPrepz won by resignation"]

1. d4 {[%clk 0:03:00.9]} 1... Nf6 {[%clk 0:03:00]} 2. c4 {[%clk 0:03:01]} 2...
c5 {[%clk 0:03:00.4]} 3. d5 {[%clk 0:03:01]} 3... b5 {[%clk 0:03:00.9]} 4. Nd2
{[%clk 0:03:01.1]} 4... bxc4 {[%clk 0:03:00.4]} 5. e4 {[%clk 0:03:01.2]} 5... e6
{[%clk 0:03:01]} 6. Bxc4 {[%clk 0:03:00.4]} 6... exd5 {[%clk 0:03:01.5]} 7. exd5
{[%clk 0:03:00.8]} 7... d6 {[%clk 0:03:02.1]} 8. Ne2 {[%clk 0:03:00.4]} 8... Be7
{[%clk 0:03:03]} 9. O-O {[%clk 0:02:59.9]} 9... Nbd7 {[%clk 0:03:03.9]} 10. Nc3
{[%clk 0:02:55.5]} 10... O-O {[%clk 0:03:03.8]} 11. b3 {[%clk 0:02:28.4]} 11...
Nb6 {[%clk 0:03:04.7]} 12. Bb2 {[%clk 0:02:22]} 12... Rb8 {[%clk 0:02:56.8]} 13.
Re1 {[%clk 0:02:00]} 13... Bf5 {[%clk 0:02:51.9]} 14. h3 {[%clk 0:01:55.9]}
14... Nfd7 {[%clk 0:02:43.2]} 15. Bf1 {[%clk 0:00:59.6]} 15... Ne5 {[%clk
0:02:37.1]} 16. Nf3 {[%clk 0:00:50.7]} 16... Bf6 {[%clk 0:02:33.5]} 17. Nxe5
{[%clk 0:00:48.6]} 17... Bxe5 {[%clk 0:02:33.6]} 18. Qd2 {[%clk 0:00:48.7]}
18... Qf6 {[%clk 0:02:26]} 19. Rac1 {[%clk 0:00:44.2]} 19... Rfe8 {[%clk
0:02:11.2]} 20. Ba1 {[%clk 0:00:42.5]} 20... Qg6 {[%clk 0:01:56.9]} 21. g3
{[%clk 0:00:35.3]} 21... Bd4 {[%clk 0:01:56]} 22. Kh2 {[%clk 0:00:28]} 22... Nd7
{[%clk 0:01:25.8]} 23. Bg2 {[%clk 0:00:26.6]} 23... Ne5 {[%clk 0:01:25.4]} 24.
Ne4 {[%clk 0:00:19]} 24... Bxa1 {[%clk 0:01:02.2]} 25. Rxa1 {[%clk 0:00:19.9]}
25... Bxh3 {[%clk 0:01:02.7]} 26. f4 {[%clk 0:00:13.1]} 26... Ng4+ {[%clk
0:00:49.1]} 27. Kg1 {[%clk 0:00:13.3]} 27... Bxg2 {[%clk 0:00:48.3]} 28. Qxg2
{[%clk 0:00:14.2]} 28... h6 {[%clk 0:00:43.4]} 29. Rad1 {[%clk 0:00:13.4]} 29...
Re7 {[%clk 0:00:36.1]} 30. Qf3 {[%clk 0:00:11.4]} 30... Rbe8 {[%clk 0:00:34]}
31. f5 {[%clk 0:00:10.4]} 31... Qh5 {[%clk 0:00:34.3]} 32. Qg2 {[%clk
0:00:09.6]} 32... Rxe4 {[%clk 0:00:31.9]} 33. Rxe4 {[%clk 0:00:09]} 33... Rxe4
{[%clk 0:00:32]} 0-1

[Event "Late-Titled-Tuesday-Blitz-June-25-2024"]
[Site "Chess.com"]
[Date "2024.06.25"]
[Round "2"]
[White "Charodej1"]
[Black "akanga001"]
[Result "1-0"]
[WhiteElo "2473"]
[BlackElo "2187"]
[TimeControl "180+1"]
[EndTime "14:16:43 PDT"]
[Termination "Charodej1 won by resignation"]

1. e4 {[%clk 0:03:00.9]} 1... e6 {[%clk 0:02:57.4]} 2. d4 {[%clk 0:02:59.3]}
2... d5 {[%clk 0:02:58]} 3. Nd2 {[%clk 0:02:56.4]} 3... Be7 {[%clk 0:02:57.1]}
4. c3 {[%clk 0:02:51.9]} 4... Nf6 {[%clk 0:02:54.4]} 5. e5 {[%clk 0:02:51.2]}
5... Nfd7 {[%clk 0:02:54.4]} 6. Bd3 {[%clk 0:02:50.9]} 6... c5 {[%clk
0:02:54.6]} 7. Ne2 {[%clk 0:02:50.8]} 7... Nc6 {[%clk 0:02:55]} 8. Nf3 {[%clk
0:02:50.5]} 8... cxd4 {[%clk 0:02:53.6]} 9. cxd4 {[%clk 0:02:50.8]} 9... g5
{[%clk 0:02:47.2]} 10. h3 {[%clk 0:02:49.3]} 10... h5 {[%clk 0:02:42.3]} 11. Be3
{[%clk 0:02:44.5]} 11... Rg8 {[%clk 0:02:41.6]} 12. Bh7 {[%clk 0:02:27.5]} 12...
Rg7 {[%clk 0:02:40.8]} 13. Bd3 {[%clk 0:02:27.4]} 13... g4 {[%clk 0:02:41]} 14.
hxg4 {[%clk 0:02:27.3]} 14... hxg4 {[%clk 0:02:39.5]} 15. Rh8+ {[%clk
0:02:27.4]} 15... Nf8 {[%clk 0:02:39.4]} 16. Nd2 {[%clk 0:01:58]} 16... Bg5
{[%clk 0:02:26.1]} 17. Nf1 {[%clk 0:01:46.8]} 17... Bxe3 {[%clk 0:02:24]} 18.
Nxe3 {[%clk 0:01:47]} 18... Qa5+ {[%clk 0:02:20.7]} 19. Qd2 {[%clk 0:01:44.6]}
19... Bd7 {[%clk 0:02:12.2]} 20. Qxa5 {[%clk 0:01:37.8]} 20... Nxa5 {[%clk
0:02:11.7]} 21. Rc1 {[%clk 0:01:38.1]} 21... Rc8 {[%clk 0:02:10.8]} 22. Rxc8+
{[%clk 0:01:35.5]} 22... Bxc8 {[%clk 0:02:11.7]} 23. Nf4 {[%clk 0:01:32.4]}
23... Nc6 {[%clk 0:02:01.9]} 24. Nh5 {[%clk 0:01:24.1]} 24... Rg5 {[%clk
0:02:01.1]} 25. Nf6+ {[%clk 0:01:24.2]} 25... Ke7 {[%clk 0:02:01.4]} 26. Nc2
{[%clk 0:01:17.1]} 26... Bd7 {[%clk 0:01:54.6]} 27. Rxf8 {[%clk 0:01:13.9]}
27... Kxf8 {[%clk 0:01:51.1]} 28. Nh7+ {[%clk 0:01:13.5]} 28... Kg7 {[%clk
0:01:43.9]} 29. Nxg5 {[%clk 0:01:14.1]} 29... Kh6 {[%clk 0:01:44.1]} 30. f4
{[%clk 0:01:13.9]} 30... Nd8 {[%clk 0:01:37.4]} 31. Kf2 {[%clk 0:01:11.8]} 31...
Kg7 {[%clk 0:01:31.7]} 32. Kg3 {[%clk 0:01:11.9]} 32... f6 {[%clk 0:01:32.6]}
33. exf6+ {[%clk 0:01:11.8]} 33... Kxf6 {[%clk 0:01:32.3]} 34. Ne3 {[%clk
0:01:10.2]} 34... Nc6 {[%clk 0:01:28]} 35. Nxg4+ {[%clk 0:01:08.6]} 35... Ke7
{[%clk 0:01:25.3]} 36. Nf3 {[%clk 0:01:07]} 36... Nb4 {[%clk 0:01:24.4]} 37. Bb1
{[%clk 0:01:06.8]} 37... Bb5 {[%clk 0:01:18.4]} 38. a3 {[%clk 0:01:06.7]} 38...
Nc6 {[%clk 0:01:16.4]} 39. Nge5 {[%clk 0:01:05.9]} 39... Nd8 {[%clk 0:01:15]}
40. Kh4 {[%clk 0:01:05.5]} 40... Kf6 {[%clk 0:01:12.9]} 41. g4 {[%clk
0:01:05.7]} 41... Be2 {[%clk 0:01:10.4]} 42. g5+ {[%clk 0:01:05.6]} 42... Kg7
{[%clk 0:01:10.3]} 43. Kg3 {[%clk 0:01:05.2]} 43... a6 {[%clk 0:01:06.5]} 44.
Nh4 {[%clk 0:01:03.7]} 44... b5 {[%clk 0:00:58.3]} 45. f5 {[%clk 0:01:03.7]}
45... exf5 {[%clk 0:00:56.9]} 46. Bxf5 {[%clk 0:01:00.5]} 46... Nb7 {[%clk
0:00:54.8]} 47. Bg4 {[%clk 0:00:58.1]} 47... Bf1 {[%clk 0:00:50.7]} 48. Kf4
{[%clk 0:00:57.3]} 48... Nd6 {[%clk 0:00:50.5]} 49. Nf5+ {[%clk 0:00:57.3]}
49... Nxf5 {[%clk 0:00:49.1]} 50. Kxf5 {[%clk 0:00:56.7]} 50... Bg2 {[%clk
0:00:42.7]} 51. Ke6 {[%clk 0:00:56.3]} 51... a5 {[%clk 0:00:41.4]} 52. Kd6
{[%clk 0:00:56.3]} 52... b4 {[%clk 0:00:41.6]} 53. Be6 {[%clk 0:00:55.9]} 53...
bxa3 {[%clk 0:00:40.6]} 54. bxa3 {[%clk 0:00:55.8]} 1-0

[Event "Late-Titled-Tuesday-Blitz-June-25-2024"]
[Site "Chess.com"]
[Date "2024.06.25"]
[Round "2"]
[White "Lady_Nika"]
[Black "lamomiajunior"]
[Result "0-1"]
[WhiteElo "2539"]
[BlackElo "2752"]
[TimeControl "180+1"]
[EndTime "14:16:44 PDT"]
[Termination "lamomiajunior won by checkmate"]

1. c4 {[%clk 0:02:58.7]} 1... Nf6 {[%clk 0:02:59.2]} 2. d4 {[%clk 0:02:58.4]}
2... g6 {[%clk 0:02:58.7]} 3. Nc3 {[%clk 0:02:58.4]} 3... Bg7 {[%clk 0:02:58.4]}
4. e4 {[%clk 0:02:58.5]} 4... d6 {[%clk 0:02:59.1]} 5. f3 {[%clk 0:02:58.8]}
5... O-O {[%clk 0:02:59]} 6. Be3 {[%clk 0:02:59.3]} 6... Nfd7 {[%clk 0:02:51.7]}
7. Qd2 {[%clk 0:02:59.2]} 7... c5 {[%clk 0:02:51]} 8. d5 {[%clk 0:02:59.3]} 8...
a6 {[%clk 0:02:48.6]} 9. Bd3 {[%clk 0:02:59.6]} 9... b5 {[%clk 0:02:48.4]} 10.
Nge2 {[%clk 0:02:58]} 10... bxc4 {[%clk 0:02:45.2]} 11. Bxc4 {[%clk 0:02:57.8]}
11... a5 {[%clk 0:02:45.5]} 12. O-O {[%clk 0:02:57.2]} 12... Ba6 {[%clk
0:02:45.4]} 13. Bxa6 {[%clk 0:02:24.4]} 13... Nxa6 {[%clk 0:02:45.9]} 14. f4
{[%clk 0:02:22]} 14... Rb8 {[%clk 0:02:43.3]} 15. Rab1 {[%clk 0:02:15.6]} 15...
Nc7 {[%clk 0:02:37.9]} 16. Kh1 {[%clk 0:02:02.8]} 16... Nb5 {[%clk 0:02:28.8]}
17. Nxb5 {[%clk 0:01:59.7]} 17... Rxb5 {[%clk 0:02:29.7]} 18. Nc3 {[%clk
0:01:57.6]} 18... Rb7 {[%clk 0:02:25.3]} 19. b3 {[%clk 0:01:55.8]} 19... Qc7
{[%clk 0:02:20.8]} 20. Rfc1 {[%clk 0:01:53.4]} 20... Rfb8 {[%clk 0:02:18.4]} 21.
Na4 {[%clk 0:01:50.3]} 21... Rb4 {[%clk 0:02:15.9]} 22. Qc2 {[%clk 0:01:43.8]}
22... Nf6 {[%clk 0:02:08.8]} 23. Nc3 {[%clk 0:01:27.3]} 23... Ng4 {[%clk
0:02:08.9]} 24. Bg1 {[%clk 0:01:27.3]} 24... Bxc3 {[%clk 0:02:01]} 25. Qxc3
{[%clk 0:01:26.6]} 25... Rxe4 {[%clk 0:02:00.3]} 26. Qf3 {[%clk 0:01:16.8]}
26... Nf6 {[%clk 0:02:00.9]} 27. f5 {[%clk 0:01:15.2]} 27... Re5 {[%clk
0:01:59.4]} 28. fxg6 {[%clk 0:01:15]} 28... hxg6 {[%clk 0:02:00.3]} 29. Bd4
{[%clk 0:01:03.4]} 29... Rf5 {[%clk 0:01:58.2]} 30. Qh3 {[%clk 0:01:03.3]} 30...
Rxd5 {[%clk 0:01:52.4]} 31. Ba1 {[%clk 0:00:47.7]} 31... Rh5 {[%clk 0:01:51.7]}
32. Qf3 {[%clk 0:00:43.5]} 32... Qb7 {[%clk 0:01:36.5]} 33. Qc3 {[%clk
0:00:34.5]} 33... Qb4 {[%clk 0:01:32.8]} 34. Qf3 {[%clk 0:00:20.6]} 34... Qe4
{[%clk 0:01:27.9]} 35. Qg3 {[%clk 0:00:15.3]} 35... Qh4 {[%clk 0:01:26]} 36.
Qxh4 {[%clk 0:00:14.4]} 36... Rxh4 {[%clk 0:01:26.9]} 37. Rd1 {[%clk 0:00:13.6]}
37... Ne4 {[%clk 0:01:25.3]} 38. Kg1 {[%clk 0:00:13.2]} 38... Rh5 {[%clk
0:01:23.1]} 39. Re1 {[%clk 0:00:12.1]} 39... f5 {[%clk 0:01:21.9]} 40. Rbd1
{[%clk 0:00:10.4]} 40... Kf7 {[%clk 0:01:19.5]} 41. Rd3 {[%clk 0:00:09.1]} 41...
e6 {[%clk 0:01:16.2]} 42. Rf3 {[%clk 0:00:08.8]} 42... d5 {[%clk 0:01:16.3]} 43.
g4 {[%clk 0:00:08.3]} 43... Rh4 {[%clk 0:01:14.9]} 44. gxf5 {[%clk 0:00:07.5]}
44... gxf5 {[%clk 0:01:15.8]} 45. Be5 {[%clk 0:00:04.4]} 45... Rg8+ {[%clk
0:01:13.6]} 46. Kh1 {[%clk 0:00:04.8]} 46... Rhg4 {[%clk 0:01:10.6]} 47. Rh3
{[%clk 0:00:04]} 47... Nf2# {[%clk 0:01:10.3]} 0-1

[Event "Late-Titled-Tuesday-Blitz-June-25-2024"]
[Site "Chess.com"]
[Date "2024.06.25"]
[Round "2"]
[White "LUISMIGUELOV"]
[Black "chrisclaireredfield"]
[Result "0-1"]
[WhiteElo "2224"]
[BlackElo "2483"]
[TimeControl "180+1"]
[EndTime "14:16:44 PDT"]
[Termination "chrisclaireredfield won by resignation"]

1. e4 {[%clk 0:03:00.9]} 1... e5 {[%clk 0:02:59.2]} 2. Bc4 {[%clk 0:03:00.4]}
2... Nf6 {[%clk 0:02:58.4]} 3. d3 {[%clk 0:03:00.6]} 3... c6 {[%clk 0:02:58.3]}
4. c3 {[%clk 0:02:58]} 4... d5 {[%clk 0:02:58.1]} 5. exd5 {[%clk 0:02:57.9]}
5... cxd5 {[%clk 0:02:57.7]} 6. Bb5+ {[%clk 0:02:57.2]} 6... Bd7 {[%clk
0:02:57.2]} 7. Bxd7+ {[%clk 0:02:55.4]} 7... Nbxd7 {[%clk 0:02:56.9]} 8. Nf3
{[%clk 0:02:55.8]} 8... Bd6 {[%clk 0:02:55.4]} 9. O-O {[%clk 0:02:55.9]} 9...
O-O {[%clk 0:02:55.2]} 10. Bg5 {[%clk 0:02:55.7]} 10... h6 {[%clk 0:02:54.8]}
11. Bh4 {[%clk 0:02:55.1]} 11... Re8 {[%clk 0:02:47]} 12. Nbd2 {[%clk
0:02:54.3]} 12... Qc7 {[%clk 0:02:45.9]} 13. Re1 {[%clk 0:02:52.7]} 13... e4
{[%clk 0:02:38.5]} 14. dxe4 {[%clk 0:02:49.7]} 14... dxe4 {[%clk 0:02:38.2]} 15.
Nd4 {[%clk 0:02:40.4]} 15... Bxh2+ {[%clk 0:02:36.2]} 16. Kh1 {[%clk 0:02:40.8]}
16... g5 {[%clk 0:02:26.2]} 17. Nf1 {[%clk 0:02:28.8]} 17... Bf4 {[%clk
0:02:17.6]} 18. Bg3 {[%clk 0:02:28]} 18... Qe5 {[%clk 0:02:08.6]} 19. Qe2 {[%clk
0:02:24.4]} 19... Nc5 {[%clk 0:02:01.4]} 20. Rad1 {[%clk 0:02:16.2]} 20... Rad8
{[%clk 0:02:00.1]} 21. Bxf4 {[%clk 0:02:04.3]} 21... gxf4 {[%clk 0:01:59.3]} 22.
b4 {[%clk 0:01:53.5]} 22... Na4 {[%clk 0:01:57.3]} 23. Qc2 {[%clk 0:01:49.7]}
23... Nb6 {[%clk 0:01:46.8]} 24. Qe2 {[%clk 0:01:37.4]} 24... Nbd5 {[%clk
0:01:41.3]} 25. Qb2 {[%clk 0:01:30]} 25... Qh5+ {[%clk 0:01:20.7]} 26. Kg1
{[%clk 0:01:28.2]} 26... Kh7 {[%clk 0:01:03.8]} 27. Qc2 {[%clk 0:01:24.1]} 27...
Qg6 {[%clk 0:01:02.7]} 28. f3 {[%clk 0:01:21.4]} 28... e3 {[%clk 0:00:59.2]} 29.
Qxg6+ {[%clk 0:01:20.2]} 29... fxg6 {[%clk 0:00:58.5]} 30. Ne2 {[%clk 0:01:09]}
30... g5 {[%clk 0:00:55.7]} 31. g3 {[%clk 0:01:06.2]} 31... Nh5 {[%clk
0:00:48.1]} 32. Kg2 {[%clk 0:01:05.6]} 32... Nb6 {[%clk 0:00:36.1]} 33. g4
{[%clk 0:01:00.3]} 33... Nf6 {[%clk 0:00:35.6]} 34. Rxd8 {[%clk 0:00:55.9]}
34... Rxd8 {[%clk 0:00:35.2]} 35. Nd4 {[%clk 0:00:55.4]} 35... Nfd5 {[%clk
0:00:31]} 36. Rc1 {[%clk 0:00:46.9]} 36... Nc4 {[%clk 0:00:30.4]} 37. Ne6 {[%clk
0:00:38.4]} 37... Rc8 {[%clk 0:00:28.9]} 38. Nc5 {[%clk 0:00:35.2]} 38... b6
{[%clk 0:00:27.2]} 39. Ne6 {[%clk 0:00:31.6]} 39... Nd2 {[%clk 0:00:24]} 40.
Nxd2 {[%clk 0:00:29.9]} 40... exd2 {[%clk 0:00:23.7]} 41. Rd1 {[%clk 0:00:30.5]}
41... Ne3+ {[%clk 0:00:23.5]} 42. Kf2 {[%clk 0:00:28.7]} 42... Nxd1+ {[%clk
0:00:23.5]} 0-1

[Event "Late-Titled-Tuesday-Blitz-June-25-2024"]
[Site "Chess.com"]
[Date "2024.06.25"]
[Round "2"]
[White "hoshiboshi"]
[Black "TokChess"]
[Result "0-1"]
[WhiteElo "2246"]
[BlackElo "2504"]
[TimeControl "180+1"]
[EndTime "14:16:45 PDT"]
[Termination "TokChess won on time"]

1. e4 {[%clk 0:03:00.9]} 1... c5 {[%clk 0:02:59.6]} 2. Nf3 {[%clk 0:03:00.6]}
2... d6 {[%clk 0:03:00]} 3. d4 {[%clk 0:03:00.4]} 3... cxd4 {[%clk 0:03:00.9]}
4. Nxd4 {[%clk 0:03:00.7]} 4... Nf6 {[%clk 0:03:01.4]} 5. Nc3 {[%clk 0:03:01.1]}
5... a6 {[%clk 0:03:00.8]} 6. Be2 {[%clk 0:03:01]} 6... e5 {[%clk 0:03:01]} 7.
Nb3 {[%clk 0:03:01.4]} 7... Be7 {[%clk 0:02:59.3]} 8. O-O {[%clk 0:03:01.3]}
8... O-O {[%clk 0:02:58.8]} 9. Re1 {[%clk 0:03:01.1]} 9... b5 {[%clk 0:02:58.4]}
10. Bf3 {[%clk 0:02:58.5]} 10... Bb7 {[%clk 0:02:58.1]} 11. a4 {[%clk
0:02:55.9]} 11... b4 {[%clk 0:02:56.6]} 12. Nd5 {[%clk 0:02:56.3]} 12... Bxd5
{[%clk 0:02:49.1]} 13. exd5 {[%clk 0:02:57.2]} 13... Nbd7 {[%clk 0:02:49.7]} 14.
Bd2 {[%clk 0:02:46.7]} 14... Qb8 {[%clk 0:02:45.8]} 15. a5 {[%clk 0:02:38.1]}
15... Qb5 {[%clk 0:02:32.2]} 16. c3 {[%clk 0:01:28]} 16... Nxd5 {[%clk 0:02:24]}
17. Bxd5 {[%clk 0:00:40.2]} 17... Qxd5 {[%clk 0:02:22.2]} 18. cxb4 {[%clk
0:00:40.5]} 18... Qb5 {[%clk 0:02:01.8]} 19. Bc3 {[%clk 0:00:39.8]} 19... Rfe8
{[%clk 0:01:12.8]} 20. Qe2 {[%clk 0:00:38.4]} 20... Qb7 {[%clk 0:01:01.3]} 21.
Rad1 {[%clk 0:00:37.5]} 21... d5 {[%clk 0:00:59.6]} 22. Bxe5 {[%clk 0:00:22.1]}
22... Bxb4 {[%clk 0:00:58.9]} 23. f4 {[%clk 0:00:15.1]} 23... Bxe1 {[%clk
0:00:58.1]} 24. Nd4 {[%clk 0:00:13.4]} 24... Bxa5 {[%clk 0:00:49.2]} 25. Nf5
{[%clk 0:00:13.1]} 25... Nxe5 {[%clk 0:00:47.3]} 26. fxe5 {[%clk 0:00:14]} 26...
Qb6+ {[%clk 0:00:44.8]} 27. Kh1 {[%clk 0:00:13.9]} 27... Qg6 {[%clk 0:00:43.3]}
28. Qf3 {[%clk 0:00:13.8]} 28... Rxe5 {[%clk 0:00:37]} 29. g4 {[%clk 0:00:10.1]}
29... Rae8 {[%clk 0:00:33.7]} 30. h4 {[%clk 0:00:09.6]} 30... h5 {[%clk
0:00:31.2]} 31. Rxd5 {[%clk 0:00:07]} 31... Rxd5 {[%clk 0:00:29.4]} 32. Qxd5
{[%clk 0:00:06.5]} 32... Qxg4 {[%clk 0:00:27.8]} 0-1

[Event "Late-Titled-Tuesday-Blitz-June-25-2024"]
[Site "Chess.com"]
[Date "2024.06.25"]
[Round "2"]
[White "crazy_machine"]
[Black "Beaterawn"]
[Result "1-0"]
[WhiteElo "2631"]
[BlackElo "2396"]
[TimeControl "180+1"]
[EndTime "14:16:47 PDT"]
[Termination "crazy_machine won by resignation"]

1. d4 {[%clk 0:03:00.9]} 1... f5 {[%clk 0:02:59.2]} 2. Nc3 {[%clk 0:03:00.8]}
2... Nf6 {[%clk 0:02:59.2]} 3. Bg5 {[%clk 0:02:57.1]} 3... d5 {[%clk 0:02:59.2]}
4. Bxf6 {[%clk 0:02:53.5]} 4... exf6 {[%clk 0:03:00.1]} 5. e3 {[%clk 0:02:54.2]}
5... Be6 {[%clk 0:03:00.4]} 6. Bd3 {[%clk 0:02:55.1]} 6... Qd7 {[%clk 0:03:00]}
7. Nge2 {[%clk 0:02:56]} 7... g5 {[%clk 0:02:58.8]} 8. h4 {[%clk 0:02:55.7]}
8... Nc6 {[%clk 0:02:44.7]} 9. Ng3 {[%clk 0:02:55]} 9... O-O-O {[%clk
0:02:40.8]} 10. Qh5 {[%clk 0:02:46.6]} 10... h6 {[%clk 0:02:08.3]} 11. a3 {[%clk
0:02:31.3]} 11... f4 {[%clk 0:00:54.6]} 12. exf4 {[%clk 0:02:20.4]} 12... Nxd4
{[%clk 0:00:43.3]} 13. hxg5 {[%clk 0:02:11.9]} 13... fxg5 {[%clk 0:00:37.7]} 14.
fxg5 {[%clk 0:02:06.7]} 14... Bg4 {[%clk 0:00:33.4]} 15. Qg6 {[%clk 0:02:06.8]}
15... Re8+ {[%clk 0:00:31.5]} 16. Kd2 {[%clk 0:01:27.7]} 16... Bd6 {[%clk
0:00:28.2]} 17. Nxd5 {[%clk 0:00:57.1]} 17... c6 {[%clk 0:00:10.1]} 18. Ne3
{[%clk 0:00:49.6]} 18... Bxg3 {[%clk 0:00:04.4]} 19. fxg3 {[%clk 0:00:45.7]}
19... h5 {[%clk 0:00:02.6]} 20. Raf1 {[%clk 0:00:38]} 20... Ne6 {[%clk
0:00:02.6]} 21. Nxg4 {[%clk 0:00:31.8]} 21... Qd4 {[%clk 0:00:03.1]} 22. Nf6
{[%clk 0:00:23.5]} 22... Rd8 {[%clk 0:00:02.9]} 23. Kc1 {[%clk 0:00:21.7]} 23...
Nc5 {[%clk 0:00:02.8]} 24. Rd1 {[%clk 0:00:19.9]} 24... Qe5 {[%clk 0:00:02.1]}
25. Qf5+ {[%clk 0:00:19.4]} 25... Qxf5 {[%clk 0:00:02.6]} 26. Bxf5+ {[%clk
0:00:20.3]} 26... Kc7 {[%clk 0:00:02.6]} 27. Rxd8 {[%clk 0:00:19.2]} 27... Rxd8
{[%clk 0:00:03.5]} 28. g6 {[%clk 0:00:19.6]} 1-0

[Event "Late-Titled-Tuesday-Blitz-June-25-2024"]
[Site "Chess.com"]
[Date "2024.06.25"]
[Round "2"]
[White "miraitrunks"]
[Black "Bugcrusher"]
[Result "0-1"]
[WhiteElo "2068"]
[BlackElo "2455"]
[TimeControl "180+1"]
[EndTime "14:16:47 PDT"]
[Termination "Bugcrusher won by checkmate"]

1. e4 {[%clk 0:02:59.2]} 1... e6 {[%clk 0:02:54.7]} 2. Nc3 {[%clk 0:02:58.8]}
2... d5 {[%clk 0:02:53.9]} 3. Nf3 {[%clk 0:02:59.7]} 3... Nf6 {[%clk 0:02:52.5]}
4. e5 {[%clk 0:03:00.3]} 4... Nfd7 {[%clk 0:02:44.3]} 5. d4 {[%clk 0:03:01.2]}
5... c5 {[%clk 0:02:40.2]} 6. dxc5 {[%clk 0:03:02.1]} 6... Nc6 {[%clk
0:02:32.5]} 7. Bf4 {[%clk 0:03:01.7]} 7... a6 {[%clk 0:02:27.4]} 8. Bd3 {[%clk
0:03:01.4]} 8... Bxc5 {[%clk 0:02:26.8]} 9. O-O {[%clk 0:03:01.4]} 9... f6
{[%clk 0:02:24.7]} 10. exf6 {[%clk 0:02:55.6]} 10... Qxf6 {[%clk 0:02:15.8]} 11.
Bg5 {[%clk 0:02:49.7]} 11... Qf7 {[%clk 0:02:15.2]} 12. Re1 {[%clk 0:02:49.4]}
12... O-O {[%clk 0:02:11.8]} 13. Qe2 {[%clk 0:02:31.6]} 13... Nd4 {[%clk
0:02:08.7]} 14. Nxd4 {[%clk 0:02:28.2]} 14... Bxd4 {[%clk 0:02:09.6]} 15. Qxe6
{[%clk 0:02:11.8]} 15... Bxf2+ {[%clk 0:02:05.3]} 16. Kh1 {[%clk 0:02:11.3]}
16... Bxe1 {[%clk 0:02:05.1]} 17. Qxf7+ {[%clk 0:02:03.8]} 17... Rxf7 {[%clk
0:02:04.8]} 18. Rxe1 {[%clk 0:02:04.5]} 18... Nc5 {[%clk 0:02:01.8]} 19. Re8+
{[%clk 0:01:42.1]} 19... Rf8 {[%clk 0:02:00.4]} 20. Bxh7+ {[%clk 0:01:41.9]}
20... Kxh7 {[%clk 0:01:47.1]} 21. Rxf8 {[%clk 0:01:42]} 21... d4 {[%clk
0:01:42.5]} 22. Nd5 {[%clk 0:01:36.6]} 22... Ne6 {[%clk 0:01:37.2]} 23. Rf5
{[%clk 0:01:20.4]} 23... Nxg5 {[%clk 0:01:36]} 24. Rxg5 {[%clk 0:01:20.3]} 24...
Be6 {[%clk 0:01:31.8]} 25. Nc7 {[%clk 0:01:17]} 25... Rf8 {[%clk 0:01:30.7]} 26.
Rh5+ {[%clk 0:00:59.2]} 26... Kg6 {[%clk 0:01:15.3]} 27. Rg5+ {[%clk 0:00:59]}
27... Kh6 {[%clk 0:01:14.8]} 28. Kg1 {[%clk 0:00:47.2]} 28... Bc4 {[%clk
0:01:13.3]} 29. h4 {[%clk 0:00:27.5]} 29... Bxa2 {[%clk 0:01:02.3]} 30. Nd5
{[%clk 0:00:22.3]} 30... Bxd5 {[%clk 0:00:59.1]} 31. Rxd5 {[%clk 0:00:22.1]}
31... Rc8 {[%clk 0:00:57.4]} 32. Rxd4 {[%clk 0:00:19.4]} 32... Rxc2 {[%clk
0:00:57.1]} 33. Rd6+ {[%clk 0:00:19.3]} 33... Kh5 {[%clk 0:00:54.8]} 34. Rb6
{[%clk 0:00:16.4]} 34... Kxh4 {[%clk 0:00:51]} 35. Rxb7 {[%clk 0:00:15.5]} 35...
g5 {[%clk 0:00:50]} 36. Rb4+ {[%clk 0:00:10.4]} 36... g4 {[%clk 0:00:49.1]} 37.
Rb6 {[%clk 0:00:09.5]} 37... a5 {[%clk 0:00:47.8]} 38. Rh6+ {[%clk 0:00:08.7]}
38... Kg3 {[%clk 0:00:47]} 39. Ra6 {[%clk 0:00:09.6]} 39... Rc1# {[%clk
0:00:46.4]} 0-1